[Event "Titled Tuesday Blitz March 07 Early 2023"]
[White "Bluebaum, Matthias"]
[Black "Manukyan, Sargis V."]
[WhiteFideId "24651516"]
[BlackFideId "13303465"]
[WhiteElo "2638"]
[BlackElo "2236"]
[Result "1-0"]
[Round "04"]
[TimeControl "180+2"]
[Date "2023.03.07"]
[WhiteClock "0:01:18"]
[BlackClock "0:01:37"]

1. d4 {[%clk 0:03:00]}  Nf6 {[%clk 0:02:59]} 2. c4 {[%clk 0:03:01]}  g6 {[%clk 0:03:00]} 3. Nc3 {[%clk 0:03:01]}  d5 {[%clk 0:03:00]} 4. cxd5 {[%clk 0:03:01]}  Nxd5 {[%clk 0:03:01]} 5. e4 {[%clk 0:03:02]}  Nxc3 {[%clk 0:03:02]} 6. bxc3 {[%clk 0:03:03]}  Bg7 {[%clk 0:03:03]} 7. Nf3 {[%clk 0:03:04]}  O-O {[%clk 0:03:03]} 8. Be2 {[%clk 0:03:04]}  c5 {[%clk 0:03:04]} 9. O-O {[%clk 0:03:04]}  cxd4 {[%clk 0:03:04]} 10. cxd4 {[%clk 0:03:05]}  Nc6 {[%clk 0:03:04]} 11. Be3 {[%clk 0:03:05]}  Bg4 {[%clk 0:03:04]} 12. e5 {[%clk 0:03:05]}  Rc8 {[%clk 0:03:02]} 13. h3 {[%clk 0:02:58]}  Bf5 {[%clk 0:03:02]} 14. Rc1 {[%clk 0:02:47]}  Nb4 {[%clk 0:02:51]} 15. Qb3 {[%clk 0:02:44]}  a5 {[%clk 0:02:50]} 16. a3 {[%clk 0:02:38]}  Be6 {[%clk 0:02:50]} 17. Qb2 {[%clk 0:02:34]}  Rxc1 {[%clk 0:02:47]} 18. Rxc1 {[%clk 0:02:33]}  Nd5 {[%clk 0:02:46]} 19. Qxb7 {[%clk 0:02:30]}  Nxe3 {[%clk 0:02:46]} 20. fxe3 {[%clk 0:02:31]}  Bh6 {[%clk 0:02:47]} 21. Kf2 {[%clk 0:02:28]}  Bd5 {[%clk 0:02:47]} 22. Qc7 {[%clk 0:02:23]}  Bxf3 {[%clk 0:02:40]} 23. Qxd8 {[%clk 0:02:14]}  Rxd8 {[%clk 0:02:39]} 24. gxf3 {[%clk 0:02:14]}  e6 {[%clk 0:02:38]} 25. Rc5 {[%clk 0:02:09]}  Ra8 {[%clk 0:02:35]} 26. a4 {[%clk 0:02:02]}  Bf8 {[%clk 0:02:35]} 27. Rc7 {[%clk 0:02:02]}  Rb8 {[%clk 0:02:29]} 28. Bb5 {[%clk 0:02:01]}  Rd8 {[%clk 0:02:28]} 29. f4 {[%clk 0:02:01]}  h5 {[%clk 0:02:28]} 30. Kf3 {[%clk 0:02:01]}  Bb4 {[%clk 0:02:24]} 31. Ke4 {[%clk 0:01:58]}  Kg7 {[%clk 0:02:20]} 32. Bc4 {[%clk 0:01:58]}  Kf8 {[%clk 0:02:15]} 33. d5 {[%clk 0:01:58]}  exd5+ {[%clk 0:02:16]} 34. Bxd5 {[%clk 0:01:59]}  Be7 {[%clk 0:02:08]} 35. Ra7 {[%clk 0:01:58]}  Bb4 {[%clk 0:02:03]} 36. Rxf7+ {[%clk 0:01:57]}  Ke8 {[%clk 0:02:00]} 37. Rg7 {[%clk 0:01:54]}  Rb8 {[%clk 0:01:59]} 38. Rxg6 {[%clk 0:01:53]}  Be7 {[%clk 0:01:58]} 39. Rg8+ {[%clk 0:01:49]}  Bf8 {[%clk 0:01:58]} 40. f5 {[%clk 0:01:49]}  h4 {[%clk 0:01:58]} 41. f6 {[%clk 0:01:48]}  Kd7 {[%clk 0:01:55]} 42. e6+ {[%clk 0:01:45]}  Kd6 {[%clk 0:01:55]} 43. Rxf8 {[%clk 0:01:31]}  Rc8 {[%clk 0:01:52]} 44. e7 {[%clk 0:01:25]}  Rc1 {[%clk 0:01:37]} 45. e8=Q {[%clk 0:01:18]} 1-0


[Site "https://www.chess.com"]

[Event "Titled Tuesday Blitz March 07 Early 2023"]
[White "Nihal Sarin"]
[Black "Nazari, Arad"]
[WhiteFideId "25092340"]
[BlackFideId "12577324"]
[WhiteElo "2689"]
[BlackElo "2313"]
[Result "1-0"]
[Round "04"]
[TimeControl "180+2"]
[Date "2023.03.07"]
[WhiteClock "0:00:11"]
[BlackClock "0:00:02"]

1. b3 {[%clk 0:03:00]}  c5 {[%clk 0:02:57]} 2. Bb2 {[%clk 0:02:58]}  Nc6 {[%clk 0:02:55]} 3. Nf3 {[%clk 0:02:57]}  d6 {[%clk 0:02:48]} 4. d4 {[%clk 0:02:57]}  cxd4 {[%clk 0:02:48]} 5. Nxd4 {[%clk 0:02:58]}  Nf6 {[%clk 0:02:47]} 6. Nxc6 {[%clk 0:02:46]}  bxc6 {[%clk 0:02:47]} 7. Nd2 {[%clk 0:02:46]}  e6 {[%clk 0:02:42]} 8. e3 {[%clk 0:02:44]}  Be7 {[%clk 0:02:42]} 9. Bd3 {[%clk 0:02:44]}  O-O {[%clk 0:02:42]} 10. O-O {[%clk 0:02:45]}  Bb7 {[%clk 0:02:41]} 11. e4 {[%clk 0:02:37]}  a5 {[%clk 0:02:29]} 12. a4 {[%clk 0:02:35]}  Nd7 {[%clk 0:02:20]} 13. Re1 {[%clk 0:02:24]}  Bf6 {[%clk 0:02:16]} 14. Bxf6 {[%clk 0:02:24]}  Qxf6 {[%clk 0:02:17]} 15. Nc4 {[%clk 0:02:24]}  Qe7 {[%clk 0:01:34]} 16. Qd2 {[%clk 0:02:13]}  Ne5 {[%clk 0:01:02]} 17. Nxa5 {[%clk 0:02:01]}  Ba6 {[%clk 0:00:58]} 18. Bxa6 {[%clk 0:01:41]}  Rxa6 {[%clk 0:00:59]} 19. Qc3 {[%clk 0:01:41]}  c5 {[%clk 0:00:52]} 20. Rad1 {[%clk 0:01:33]}  Rb8 {[%clk 0:00:36]} 21. Nc4 {[%clk 0:01:28]}  f6 {[%clk 0:00:30]} 22. Rd2 {[%clk 0:01:14]}  Rb4 {[%clk 0:00:30]} 23. Nxe5 {[%clk 0:01:03]}  fxe5 {[%clk 0:00:30]} 24. f3 {[%clk 0:01:02]}  Qa7 {[%clk 0:00:21]} 25. h3 {[%clk 0:00:54]}  c4+ {[%clk 0:00:07]} 26. Qe3 {[%clk 0:00:32]}  Qxe3+ {[%clk 0:00:05]} 27. Rxe3 {[%clk 0:00:33]}  Rab6 {[%clk 0:00:05]} 28. Rd1 {[%clk 0:00:20]}  Kf7 {[%clk 0:00:05]} 29. Rc3 {[%clk 0:00:17]}  cxb3 {[%clk 0:00:05]} 30. cxb3 {[%clk 0:00:18]}  Rxb3 {[%clk 0:00:06]} 31. Rxb3 {[%clk 0:00:19]}  Rxb3 {[%clk 0:00:07]} 32. Rxd6 {[%clk 0:00:19]}  Ra3 {[%clk 0:00:08]} 33. Ra6 {[%clk 0:00:19]}  Kf6 {[%clk 0:00:08]} 34. h4 {[%clk 0:00:19]}  h5 {[%clk 0:00:07]} 35. Ra8 {[%clk 0:00:18]}  Ra2 {[%clk 0:00:06]} 36. a5 {[%clk 0:00:18]}  Kf7 {[%clk 0:00:05]} 37. a6 {[%clk 0:00:18]}  Ra3 {[%clk 0:00:05]} 38. a7 {[%clk 0:00:09]}  Ra2 {[%clk 0:00:05]} 39. Kf1 {[%clk 0:00:09]}  Ra3 {[%clk 0:00:03]} 40. Ke2 {[%clk 0:00:10]}  Ra2+ {[%clk 0:00:04]} 41. Kd3 {[%clk 0:00:10]}  Ra3+ {[%clk 0:00:04]} 42. Kc4 {[%clk 0:00:10]}  Ra5 {[%clk 0:00:04]} 43. Kb4 {[%clk 0:00:10]}  Ra1 {[%clk 0:00:04]} 44. Kc5 {[%clk 0:00:11]}  Ra6 {[%clk 0:00:02]} 45. Kb5 {[%clk 0:00:09]}  Ra1 {[%clk 0:00:02]} 46. Kb6 {[%clk 0:00:09]}  Rb1+ {[%clk 0:00:03]} 47. Kc5 {[%clk 0:00:09]}  Ra1 {[%clk 0:00:03]} 48. Kd6 {[%clk 0:00:10]}  Ra5 {[%clk 0:00:02]} 49. g3 {[%clk 0:00:11]}  Kg6 {[%clk 0:00:02]} 50. Kxe6 {[%clk 0:00:11]} 1-0


[Site "https://www.chess.com"]

[Event "Titled Tuesday Blitz March 07 Early 2023"]
[White "Kramnik, Vladimir"]
[Black "Costachi, Mihnea"]
[WhiteFideId "4101588"]
[BlackFideId "1217518"]
[WhiteElo "2712"]
[BlackElo "2456"]
[Result "1-0"]
[Round "04"]
[TimeControl "180+2"]
[Date "2023.03.07"]
[WhiteClock "0:00:28"]
[BlackClock "0:00:02"]

1. Nf3 {[%clk 0:03:00]}  Nf6 {[%clk 0:02:59]} 2. g3 {[%clk 0:03:00]}  g6 {[%clk 0:03:00]} 3. b4 {[%clk 0:02:59]}  Bg7 {[%clk 0:03:00]} 4. Bb2 {[%clk 0:02:59]}  O-O {[%clk 0:03:00]} 5. Bg2 {[%clk 0:02:59]}  b6 {[%clk 0:03:00]} 6. O-O {[%clk 0:02:58]}  Bb7 {[%clk 0:03:01]} 7. c4 {[%clk 0:02:56]}  d6 {[%clk 0:02:52]} 8. Nc3 {[%clk 0:02:54]}  c5 {[%clk 0:02:51]} 9. bxc5 {[%clk 0:02:52]}  dxc5 {[%clk 0:02:46]} 10. d3 {[%clk 0:02:50]}  Nc6 {[%clk 0:02:46]} 11. Ne5 {[%clk 0:02:46]}  Qc8 {[%clk 0:02:40]} 12. Nxc6 {[%clk 0:02:44]}  Bxc6 {[%clk 0:02:41]} 13. a4 {[%clk 0:02:33]}  Bxg2 {[%clk 0:02:36]} 14. Kxg2 {[%clk 0:02:33]}  h5 {[%clk 0:02:36]} 15. f3 {[%clk 0:02:27]}  h4 {[%clk 0:02:35]} 16. Qd2 {[%clk 0:02:21]}  Rd8 {[%clk 0:02:11]} 17. g4 {[%clk 0:02:16]}  Qe6 {[%clk 0:01:51]} 18. Rad1 {[%clk 0:01:46]}  Rd7 {[%clk 0:01:42]} 19. Qe1 {[%clk 0:01:34]}  Nh7 {[%clk 0:01:33]} 20. Rd2 {[%clk 0:01:21]}  Bh6 {[%clk 0:01:27]} 21. Rc2 {[%clk 0:01:18]}  g5 {[%clk 0:01:07]} 22. Nd5 {[%clk 0:01:12]}  Bg7 {[%clk 0:01:07]} 23. Bxg7 {[%clk 0:01:10]}  Kxg7 {[%clk 0:01:08]} 24. e4 {[%clk 0:01:09]}  Qe5 {[%clk 0:00:58]} 25. f4 {[%clk 0:01:01]}  gxf4 {[%clk 0:00:59]} 26. Nxf4 {[%clk 0:00:47]}  Nf6 {[%clk 0:00:59]} 27. Qxh4 {[%clk 0:00:44]}  Rh8 {[%clk 0:00:59]} 28. Qg3 {[%clk 0:00:36]}  Qg5 {[%clk 0:00:55]} 29. h3 {[%clk 0:00:33]}  e6 {[%clk 0:00:55]} 30. Rcf2 {[%clk 0:00:33]}  Rh6 {[%clk 0:00:49]} 31. e5 {[%clk 0:00:31]}  Qxe5 {[%clk 0:00:34]} 32. g5 {[%clk 0:00:30]}  Rh8 {[%clk 0:00:04]} 33. Nh5+ {[%clk 0:00:28]}  Nxh5 {[%clk 0:00:02]} 34. Qxe5+ {[%clk 0:00:28]} 1-0


[Site "https://www.chess.com"]

[Event "Titled Tuesday Blitz March 07 Early 2023"]
[White "Keymer, Vincent"]
[Black "Kucuksari, Kaan"]
[WhiteFideId "12940690"]
[BlackFideId "6380166"]
[WhiteElo "2651"]
[BlackElo "2364"]
[Result "1-0"]
[Round "04"]
[TimeControl "180+2"]
[Date "2023.03.07"]
[WhiteClock "0:01:00"]
[BlackClock "0:00:25"]

1. a3 {[%clk 0:02:57]}  e5 {[%clk 0:02:59]} 2. c4 {[%clk 0:02:57]}  Nf6 {[%clk 0:02:58]} 3. d3 {[%clk 0:02:57]}  d5 {[%clk 0:02:56]} 4. cxd5 {[%clk 0:02:57]}  Nxd5 {[%clk 0:02:57]} 5. Nf3 {[%clk 0:02:57]}  Nc6 {[%clk 0:02:57]} 6. e4 {[%clk 0:02:58]}  Nf4 {[%clk 0:02:47]} 7. d4 {[%clk 0:02:55]}  Bg4 {[%clk 0:02:43]} 8. d5 {[%clk 0:02:43]}  Bxf3 {[%clk 0:02:16]} 9. gxf3 {[%clk 0:02:40]}  Nb8 {[%clk 0:02:11]} 10. Bb5+ {[%clk 0:02:10]}  c6 {[%clk 0:02:07]} 11. dxc6 {[%clk 0:02:08]}  Nxc6 {[%clk 0:02:06]} 12. Nc3 {[%clk 0:02:05]}  Bc5 {[%clk 0:01:47]} 13. Bxf4 {[%clk 0:01:57]}  exf4 {[%clk 0:01:45]} 14. Qd5 {[%clk 0:01:50]}  Qb6 {[%clk 0:01:22]} 15. Bxc6+ {[%clk 0:01:24]}  bxc6 {[%clk 0:01:21]} 16. Qe5+ {[%clk 0:01:24]}  Be7 {[%clk 0:01:04]} 17. O-O-O {[%clk 0:01:16]}  Rb8 {[%clk 0:00:54]} 18. Rd2 {[%clk 0:01:14]}  Kf8 {[%clk 0:00:26]} 19. Rg1 {[%clk 0:01:01]}  Bf6 {[%clk 0:00:25]} 20. Qd6+ {[%clk 0:01:01]}  Kg8 {[%clk 0:00:25]} 21. Qxf6 {[%clk 0:01:00]} 1-0


[Site "https://www.chess.com"]

[Event "Titled Tuesday Blitz March 07 Early 2023"]
[White "Krstulovic, Alex"]
[Black "Dubov, Daniil"]
[WhiteFideId "760056"]
[BlackFideId "24126055"]
[WhiteElo "2311"]
[BlackElo "2802"]
[Result "0-1"]
[Round "04"]
[TimeControl "180+2"]
[Date "2023.03.07"]
[WhiteClock "0:00:05"]
[BlackClock "0:00:11"]

1. d4 {[%clk 0:03:00]}  Nf6 {[%clk 0:02:48]} 2. Nf3 {[%clk 0:03:01]}  d5 {[%clk 0:02:48]} 3. Bf4 {[%clk 0:03:01]}  c5 {[%clk 0:02:48]} 4. e3 {[%clk 0:03:02]}  Nc6 {[%clk 0:02:48]} 5. Nbd2 {[%clk 0:03:02]}  Nh5 {[%clk 0:02:46]} 6. dxc5 {[%clk 0:03:01]}  Nxf4 {[%clk 0:02:46]} 7. exf4 {[%clk 0:03:02]}  g6 {[%clk 0:02:46]} 8. c3 {[%clk 0:02:46]}  Bg7 {[%clk 0:02:46]} 9. Bb5 {[%clk 0:02:42]}  O-O {[%clk 0:02:46]} 10. Bxc6 {[%clk 0:02:41]}  bxc6 {[%clk 0:02:46]} 11. Qa4 {[%clk 0:02:42]}  Rb8 {[%clk 0:02:45]} 12. Nb3 {[%clk 0:02:34]}  Qc7 {[%clk 0:02:39]} 13. O-O {[%clk 0:02:29]}  Bd7 {[%clk 0:02:36]} 14. Rfe1 {[%clk 0:02:27]}  Rfe8 {[%clk 0:02:33]} 15. Ne5 {[%clk 0:02:27]}  Rb5 {[%clk 0:02:27]} 16. Re2 {[%clk 0:02:10]}  Reb8 {[%clk 0:02:18]} 17. Rae1 {[%clk 0:02:03]}  e6 {[%clk 0:02:18]} 18. Nd3 {[%clk 0:02:00]}  a5 {[%clk 0:02:15]} 19. Nd4 {[%clk 0:01:56]}  R5b7 {[%clk 0:02:15]} 20. a3 {[%clk 0:01:51]}  Be8 {[%clk 0:02:13]} 21. b4 {[%clk 0:01:47]}  axb4 {[%clk 0:02:13]} 22. axb4 {[%clk 0:01:48]}  Ra7 {[%clk 0:02:13]} 23. Qc2 {[%clk 0:01:42]}  Rba8 {[%clk 0:02:13]} 24. Ne5 {[%clk 0:01:39]}  g5 {[%clk 0:02:06]} 25. g3 {[%clk 0:01:24]}  h6 {[%clk 0:02:02]} 26. f5 {[%clk 0:01:11]}  Ra2 {[%clk 0:02:01]} 27. Qd3 {[%clk 0:01:11]}  Ra1 {[%clk 0:01:53]} 28. Ng4 {[%clk 0:00:41]}  e5 {[%clk 0:01:47]} 29. f6 {[%clk 0:00:31]}  Bd7 {[%clk 0:01:11]} 30. Nxe5 {[%clk 0:00:25]}  Bxf6 {[%clk 0:01:11]} 31. Nxd7 {[%clk 0:00:21]}  Qxd7 {[%clk 0:01:12]} 32. Rxa1 {[%clk 0:00:17]}  Rxa1+ {[%clk 0:01:11]} 33. Kg2 {[%clk 0:00:18]}  Ra3 {[%clk 0:01:10]} 34. Re3 {[%clk 0:00:11]}  g4 {[%clk 0:00:57]} 35. Ne2 {[%clk 0:00:07]}  h5 {[%clk 0:00:55]} 36. Qc2 {[%clk 0:00:06]}  h4 {[%clk 0:00:54]} 37. gxh4 {[%clk 0:00:05]}  Bxh4 {[%clk 0:00:54]} 38. Ng3 {[%clk 0:00:05]}  Bg5 {[%clk 0:00:53]} 39. Re2 {[%clk 0:00:05]}  Bf6 {[%clk 0:00:52]} 40. Re3 {[%clk 0:00:06]}  Bg5 {[%clk 0:00:31]} 41. Re5 {[%clk 0:00:06]}  Bf6 {[%clk 0:00:27]} 42. Re3 {[%clk 0:00:06]}  Ra8 {[%clk 0:00:23]} 43. Qe2 {[%clk 0:00:06]}  d4 {[%clk 0:00:21]} 44. cxd4 {[%clk 0:00:06]}  Bxd4 {[%clk 0:00:22]} 45. Re4 {[%clk 0:00:06]}  Qd5 {[%clk 0:00:13]} 46. Qxg4+ {[%clk 0:00:06]}  Kf8 {[%clk 0:00:14]} 47. Qf3 {[%clk 0:00:07]}  Ra2 {[%clk 0:00:13]} 48. Nf5 {[%clk 0:00:07]}  Rxf2+ {[%clk 0:00:12]} 49. Qxf2 {[%clk 0:00:05]}  Bxf2 {[%clk 0:00:13]} 50. Nd6 {[%clk 0:00:04]}  Bd4 {[%clk 0:00:12]} 51. Kf3 {[%clk 0:00:04]}  Bc3 {[%clk 0:00:12]} 52. Ke2 {[%clk 0:00:05]}  Be5 {[%clk 0:00:10]} 53. Re3 {[%clk 0:00:04]}  Bxd6 {[%clk 0:00:10]} 54. cxd6 {[%clk 0:00:04]}  Qxd6 {[%clk 0:00:11]} 55. h3 {[%clk 0:00:05]}  Qxb4 {[%clk 0:00:11]} 0-1


[Site "https://www.chess.com"]

[Event "Titled Tuesday Blitz March 07 Early 2023"]
[White "Alekseenko, Kirill"]
[Black "Djokovic, Nebojsa"]
[WhiteFideId "4135539"]
[BlackFideId "938300"]
[WhiteElo "2683"]
[BlackElo "2583"]
[Result "1-0"]
[Round "04"]
[TimeControl "180+2"]
[Date "2023.03.07"]
[WhiteClock "0:00:10"]
[BlackClock "0:00:06"]

1. e4 {[%clk 0:02:59]}  e6 {[%clk 0:03:00]} 2. d4 {[%clk 0:02:57]}  d5 {[%clk 0:03:01]} 3. Nd2 {[%clk 0:02:58]}  c5 {[%clk 0:03:00]} 4. exd5 {[%clk 0:02:57]}  Qxd5 {[%clk 0:03:01]} 5. dxc5 {[%clk 0:02:57]}  Nf6 {[%clk 0:03:00]} 6. Ngf3 {[%clk 0:02:57]}  Qxc5 {[%clk 0:03:00]} 7. Bd3 {[%clk 0:02:58]}  Nbd7 {[%clk 0:02:58]} 8. O-O {[%clk 0:02:52]}  Qc7 {[%clk 0:02:57]} 9. a4 {[%clk 0:02:52]}  Nc5 {[%clk 0:02:50]} 10. Bc4 {[%clk 0:02:50]}  Bd7 {[%clk 0:02:41]} 11. b3 {[%clk 0:02:49]}  Bd6 {[%clk 0:02:33]} 12. Bb2 {[%clk 0:02:48]}  O-O {[%clk 0:02:31]} 13. Qe2 {[%clk 0:02:44]}  Bc6 {[%clk 0:02:08]} 14. h3 {[%clk 0:02:20]}  Rfd8 {[%clk 0:02:01]} 15. Rfe1 {[%clk 0:02:15]}  Nd5 {[%clk 0:01:52]} 16. Ne5 {[%clk 0:02:00]}  Nf4 {[%clk 0:01:22]} 17. Qg4 {[%clk 0:01:59]}  Ng6 {[%clk 0:01:22]} 18. Nxc6 {[%clk 0:01:49]}  Qxc6 {[%clk 0:01:10]} 19. Nf3 {[%clk 0:01:47]}  a6 {[%clk 0:00:51]} 20. h4 {[%clk 0:01:43]}  b5 {[%clk 0:00:26]} 21. axb5 {[%clk 0:01:18]}  axb5 {[%clk 0:00:27]} 22. Rxa8 {[%clk 0:01:18]}  Rxa8 {[%clk 0:00:27]} 23. Bf1 {[%clk 0:01:19]}  f5 {[%clk 0:00:21]} 24. Qd4 {[%clk 0:01:16]}  e5 {[%clk 0:00:20]} 25. Nxe5 {[%clk 0:01:10]}  Nxe5 {[%clk 0:00:16]} 26. Rxe5 {[%clk 0:01:11]}  Bxe5 {[%clk 0:00:14]} 27. Qxe5 {[%clk 0:01:12]}  Ne6 {[%clk 0:00:13]} 28. Bxb5 {[%clk 0:01:10]}  Qxc2 {[%clk 0:00:04]} 29. Qxe6+ {[%clk 0:01:09]}  Kh8 {[%clk 0:00:04]} 30. Bxg7+ {[%clk 0:00:55]}  Kxg7 {[%clk 0:00:04]} 31. Qe7+ {[%clk 0:00:56]}  Kg6 {[%clk 0:00:03]} 32. Qg5+ {[%clk 0:00:50]}  Kf7 {[%clk 0:00:03]} 33. Bc4+ {[%clk 0:00:51]}  Ke8 {[%clk 0:00:01]} 34. Qg8+ {[%clk 0:00:51]}  Kd7 {[%clk 0:00:01]} 35. Qxa8 {[%clk 0:00:46]}  Qc1+ {[%clk 0:00:02]} 36. Bf1 {[%clk 0:00:46]}  f4 {[%clk 0:00:02]} 37. Qe4 {[%clk 0:00:41]}  Kd6 {[%clk 0:00:02]} 38. Qxh7 {[%clk 0:00:34]}  Ke5 {[%clk 0:00:02]} 39. Qg7+ {[%clk 0:00:34]}  Kf5 {[%clk 0:00:02]} 40. Qd7+ {[%clk 0:00:33]}  Ke5 {[%clk 0:00:02]} 41. Qd3 {[%clk 0:00:29]}  Qc5 {[%clk 0:00:02]} 42. Qc4 {[%clk 0:00:27]}  Qb6 {[%clk 0:00:02]} 43. Bd3 {[%clk 0:00:27]}  Qd8 {[%clk 0:00:01]} 44. Qe4+ {[%clk 0:00:27]}  Kd6 {[%clk 0:00:02]} 45. Qd4+ {[%clk 0:00:27]}  Kc7 {[%clk 0:00:02]} 46. Qxd8+ {[%clk 0:00:28]}  Kxd8 {[%clk 0:00:03]} 47. g4 {[%clk 0:00:27]}  Ke7 {[%clk 0:00:04]} 48. Kg2 {[%clk 0:00:27]}  Ke8 {[%clk 0:00:04]} 49. Kf3 {[%clk 0:00:28]}  Kf8 {[%clk 0:00:05]} 50. Kxf4 {[%clk 0:00:28]}  Kg7 {[%clk 0:00:06]} 51. Ke5 {[%clk 0:00:28]}  Kf8 {[%clk 0:00:06]} 52. Ke6 {[%clk 0:00:27]}  Kg7 {[%clk 0:00:07]} 53. Ke7 {[%clk 0:00:25]}  Kh8 {[%clk 0:00:08]} 54. f4 {[%clk 0:00:24]}  Kg7 {[%clk 0:00:09]} 55. b4 {[%clk 0:00:24]}  Kh8 {[%clk 0:00:10]} 56. b5 {[%clk 0:00:25]}  Kg8 {[%clk 0:00:10]} 57. b6 {[%clk 0:00:25]}  Kg7 {[%clk 0:00:11]} 58. b7 {[%clk 0:00:26]}  Kh6 {[%clk 0:00:07]} 59. b8=B {[%clk 0:00:15]}  Kg7 {[%clk 0:00:05]} 60. Be5+ {[%clk 0:00:15]}  Kh6 {[%clk 0:00:05]} 61. Bc4 {[%clk 0:00:14]}  Kg6 {[%clk 0:00:05]} 62. f5+ {[%clk 0:00:13]}  Kh6 {[%clk 0:00:05]} 63. Bf4+ {[%clk 0:00:13]}  Kh7 {[%clk 0:00:05]} 64. g5 {[%clk 0:00:13]}  Kg7 {[%clk 0:00:06]} 65. h5 {[%clk 0:00:13]}  Kh8 {[%clk 0:00:06]} 66. Kf8 {[%clk 0:00:11]}  Kh7 {[%clk 0:00:06]} 67. g6+ {[%clk 0:00:11]}  Kh8 {[%clk 0:00:06]} 68. g7+ {[%clk 0:00:09]}  Kh7 {[%clk 0:00:06]} 69. Bg8# {[%clk 0:00:10]} 1-0


[Site "https://www.chess.com"]

[Event "Titled Tuesday Blitz March 07 Early 2023"]
[White "Shapiro, Viktor"]
[Black "Bok, Benjamin"]
[WhiteFideId "4175700"]
[BlackFideId "1017063"]
[WhiteElo "2152"]
[BlackElo "2658"]
[Result "0-1"]
[Round "04"]
[TimeControl "180+2"]
[Date "2023.03.07"]
[WhiteClock "0:00:51"]
[BlackClock "0:01:43"]

1. c4 {[%clk 0:03:00]}  Nf6 {[%clk 0:02:59]} 2. Nc3 {[%clk 0:03:01]}  e5 {[%clk 0:02:57]} 3. g3 {[%clk 0:03:01]}  Bb4 {[%clk 0:02:56]} 4. Bg2 {[%clk 0:03:01]}  O-O {[%clk 0:02:57]} 5. Nf3 {[%clk 0:03:01]}  Re8 {[%clk 0:02:56]} 6. O-O {[%clk 0:03:00]}  e4 {[%clk 0:02:56]} 7. Nd4 {[%clk 0:03:00]}  Nc6 {[%clk 0:02:57]} 8. Nc2 {[%clk 0:03:00]}  Bxc3 {[%clk 0:02:57]} 9. bxc3 {[%clk 0:03:00]}  d5 {[%clk 0:02:57]} 10. cxd5 {[%clk 0:03:00]}  Qxd5 {[%clk 0:02:58]} 11. d3 {[%clk 0:02:59]}  Qh5 {[%clk 0:02:56]} 12. Bf4 {[%clk 0:02:46]}  Bh3 {[%clk 0:02:51]} 13. f3 {[%clk 0:02:38]}  exd3 {[%clk 0:02:46]} 14. exd3 {[%clk 0:02:37]}  Bxg2 {[%clk 0:02:34]} 15. Kxg2 {[%clk 0:02:37]}  Qg6 {[%clk 0:02:18]} 16. Bxc7 {[%clk 0:02:28]}  Nd5 {[%clk 0:02:16]} 17. Rb1 {[%clk 0:02:08]}  Nxc3 {[%clk 0:02:14]} 18. Qc1 {[%clk 0:01:55]}  Nxb1 {[%clk 0:02:09]} 19. Qxb1 {[%clk 0:01:55]}  Qxd3 {[%clk 0:02:10]} 20. Rf2 {[%clk 0:01:37]}  Nd4 {[%clk 0:02:05]} 21. Qb2 {[%clk 0:01:25]}  Re2 {[%clk 0:01:44]} 22. Qxd4 {[%clk 0:00:55]}  Qxc2 {[%clk 0:01:43]} 23. Bf4 {[%clk 0:00:51]}  Rxf2+ {[%clk 0:01:42]} 24. Qxf2 {[%clk 0:00:50]}  Qxf2+ {[%clk 0:01:43]} 25. Kxf2 {[%clk 0:00:51]}  Rc8 {[%clk 0:01:43]} 0-1


[Site "https://www.chess.com"]

[Event "Titled Tuesday Blitz March 07 Early 2023"]
[White "Gabdrakhmanov, Azat"]
[Black "Terry, Renato"]
[WhiteFideId "34189197"]
[BlackFideId "3803457"]
[WhiteElo "2266"]
[BlackElo "2579"]
[Result "0-1"]
[Round "04"]
[TimeControl "180+2"]
[Date "2023.03.07"]
[WhiteClock "0:00:18"]
[BlackClock "0:00:46"]

1. e4 {[%clk 0:03:00]}  e6 {[%clk 0:03:00]} 2. d4 {[%clk 0:02:58]}  d5 {[%clk 0:03:00]} 3. e5 {[%clk 0:02:58]}  c5 {[%clk 0:03:00]} 4. c3 {[%clk 0:02:59]}  Qb6 {[%clk 0:03:01]} 5. Nf3 {[%clk 0:02:59]}  Bd7 {[%clk 0:03:01]} 6. a3 {[%clk 0:02:59]}  Bb5 {[%clk 0:03:01]} 7. c4 {[%clk 0:03:00]}  Bxc4 {[%clk 0:03:00]} 8. Bxc4 {[%clk 0:02:59]}  dxc4 {[%clk 0:03:01]} 9. Nc3 {[%clk 0:03:00]}  Nc6 {[%clk 0:02:52]} 10. d5 {[%clk 0:02:56]}  exd5 {[%clk 0:02:31]} 11. Qxd5 {[%clk 0:02:52]}  Nge7 {[%clk 0:02:12]} 12. Qxc4 {[%clk 0:02:51]}  Na5 {[%clk 0:02:07]} 13. Qa4+ {[%clk 0:02:38]}  Nec6 {[%clk 0:02:07]} 14. O-O {[%clk 0:02:35]}  Qb3 {[%clk 0:02:03]} 15. Qf4 {[%clk 0:02:19]}  Be7 {[%clk 0:01:58]} 16. e6 {[%clk 0:02:08]}  O-O {[%clk 0:01:51]} 17. exf7+ {[%clk 0:02:07]}  Rxf7 {[%clk 0:01:52]} 18. Qg3 {[%clk 0:02:07]}  Nd4 {[%clk 0:01:43]} 19. Nxd4 {[%clk 0:01:52]}  cxd4 {[%clk 0:01:41]} 20. Ne4 {[%clk 0:01:53]}  Qxg3 {[%clk 0:01:38]} 21. hxg3 {[%clk 0:01:54]}  Nb3 {[%clk 0:01:38]} 22. Rb1 {[%clk 0:01:53]}  Rd8 {[%clk 0:01:22]} 23. Rd1 {[%clk 0:01:50]}  d3 {[%clk 0:01:18]} 24. Be3 {[%clk 0:01:48]}  a6 {[%clk 0:01:13]} 25. Nd2 {[%clk 0:01:47]}  Na5 {[%clk 0:01:13]} 26. Bb6 {[%clk 0:01:22]}  Rd5 {[%clk 0:01:12]} 27. Bxa5 {[%clk 0:01:21]}  Rxa5 {[%clk 0:01:13]} 28. Rbc1 {[%clk 0:01:17]}  Bf6 {[%clk 0:01:05]} 29. Nc4 {[%clk 0:00:51]}  Rd5 {[%clk 0:01:04]} 30. b3 {[%clk 0:00:43]}  Re7 {[%clk 0:00:53]} 31. Ne3 {[%clk 0:00:41]}  Rd8 {[%clk 0:00:52]} 32. Rd2 {[%clk 0:00:28]}  Bg5 {[%clk 0:00:50]} 33. Re1 {[%clk 0:00:27]}  Kf7 {[%clk 0:00:51]} 34. f4 {[%clk 0:00:25]}  Bf6 {[%clk 0:00:51]} 35. Rdd1 {[%clk 0:00:22]}  Bc3 {[%clk 0:00:50]} 36. Kf2 {[%clk 0:00:17]}  Bxe1+ {[%clk 0:00:50]} 37. Rxe1 {[%clk 0:00:18]}  Rde8 {[%clk 0:00:46]} 0-1


[Site "https://www.chess.com"]